bitfinex/quotes_BTCUSD_20250711
["timestamp","ask_amount","ask_price","bid_price","bid_amount"]
[1752260858989,0.01703779,117410.0,117400.0,0.45235993]
[1752260859202,0.01703779,117410.0,117400.0,0.43685993]
[1752260859791,0.46391397,117410.0,117400.0,0.41997993]
[1752260859999,0.50085397,117410.0,117400.0,0.41997993]
[1752260861240,0.48425397,117410.0,117400.0,0.41997993]
[1752260861440,0.48126397,117410.0,117400.0,0.41997993]
[1752260861687,0.49955397,117410.0,117400.0,0.41798993]
[1752260863053,0.49955397,117410.0,117400.0,0.41997993]
[1752260864638,0.48425397,117410.0,117400.0,0.41997993]
[1752260864762,0.49995397,117410.0,117400.0,0.41997993]
[1752260866409,0.01703779,117410.0,117400.0,0.41997993]
[1752260866617,0.00249694,117410.0,117400.0,0.43865993]
[1752260866781,0.00249694,117410.0,117400.0,0.90073611]
[1752260866980,0.00249694,117410.0,117400.0,0.45385993]
[1752260867311,0.00249694,117410.0,117400.0,0.90073611]
[1752260868567,0.00249694,117410.0,117400.0,1.07961167]
[1752260868774,0.02730461,117440.0,117410.0,0.0158]
[1752260868775,0.03425,117440.0,117410.0,0.0158]
[1752260868976,0.48127522,117440.0,117420.0,0.27467903]
[1752260869176,0.48127522,117440.0,117420.0,0.27254993]
[1752260869296,0.49581607,117440.0,117430.0,0.00212892]
[1752260869499,0.49780607,117440.0,117430.0,0.08755885]
[1752260870347,0.50080607,117440.0,117430.0,0.08755885]
[1752260870765,0.84080607,117440.0,117430.0,0.08755885]
[1752260870939,0.84916029,117440.0,117430.0,0.08755885]
[1752260871137,0.84916029,117440.0,117430.0,0.08542993]
[1752260871396,0.40228411,117440.0,117430.0,0.08542993]
[1752260871526,0.84916029,117440.0,117430.0,0.08542993]
[1752260872478,0.40228411,117440.0,117430.0,0.08542993]
[1752260872680,0.84916029,117440.0,117430.0,0.08542993]
[1752260873095,0.83804791,117440.0,117430.0,0.08542993]
[1752260873507,0.40228411,117440.0,117430.0,0.08738993]
[1752260873621,0.39392989,117440.0,117430.0,0.08738993]
[1752260873835,0.37328989,117440.0,117430.0,0.08738993]
[1752260874039,0.01768989,117440.0,117430.0,0.08738993]
[1752260874243,0.01768989,117440.0,117430.0,0.10491885]
[1752260874468,0.01968989,117440.0,117430.0,0.10491885]
[1752260875288,0.01968989,117440.0,117430.0,0.12269885]
[1752260875525,0.01968989,117440.0,117430.0,0.29301307]
[1752260875725,0.48699627,117470.0,117460.0,0.00151975]
[1752260875932,0.4390138,117480.0,117460.0,0.27618968]
[1752260876146,0.45446323,117480.0,117470.0,0.08542993]
[1752260876481,0.79645323,117480.0,117470.0,0.08542993]
[1752260877059,0.80481038,117480.0,117470.0,0.08542993]
[1752260877401,0.80581038,117480.0,117470.0,0.08542993]
[1752260877606,0.82035123,117480.0,117470.0,0.08542993]
[1752260878765,0.38458743,117480.0,117470.0,0.08738993]
[1752260878971,0.37623028,117480.0,117470.0,0.08951813]
[1752260879578,0.81199408,117480.0,117470.0,0.08951813]
[1752260879780,0.81199408,117480.0,117470.0,0.08755813]
[1752260879945,0.82699408,117480.0,117470.0,0.08542993]
[1752260880949,0.38534085,117470.0,117460.0,0.18879975]
[1752260881162,0.82309465,117470.0,117460.0,0.27270993]
[1752260881368,0.82634465,117470.0,117460.0,0.18728]
[1752260882535,0.82634465,117470.0,117460.0,0.18828]
[1752260882941,0.82634465,117470.0,117460.0,0.18928]
[1752260885248,1.22634465,117470.0,117460.0,0.18928]
[1752260886857,0.82634465,117470.0,117460.0,0.18928]
[1752260887616,0.8248249,117470.0,117460.0,0.18928]
[1752260889152,0.0490611,117470.0,117460.0,0.18928]
[1752260889370,0.4848249,117470.0,117460.0,0.18928]
[1752260892781,0.45230465,117450.0,117420.0,0.04301762]
[1752260892981,0.45230465,117450.0,117440.0,0.00196]
[1752260893137,0.45230465,117450.0,117440.0,0.08738993]
[1752260893744,0.45230465,117450.0,117440.0,0.27430993]
[1752260894160,0.47384465,117450.0,117440.0,0.27430993]
[1752260894766,0.45230465,117450.0,117440.0,0.27730993]
[1752260895391,0.45230465,117450.0,117440.0,0.28130993]
[1752260896368,0.01654085,117450.0,117440.0,0.28130993]
[1752260898583,0.01620027,117450.0,117440.0,0.28130993]
[1752260898843,0.46856407,117450.0,117440.0,0.28130993]
[1752260900424,0.47069407,117450.0,117440.0,0.28130993]
[1752260900641,0.48907407,117450.0,117440.0,0.28130993]
[1752260900803,0.48907407,117450.0,117440.0,0.27934993]
[1752260901407,0.48907407,117450.0,117440.0,0.28139993]
[1752260901611,0.47367407,117450.0,117440.0,0.28139993]
[1752260901811,0.47367407,117450.0,117440.0,0.27164842]
[1752260902578,0.48907407,117450.0,117440.0,0.26959842]
[1752260904691,0.01620027,117450.0,117440.0,0.27164842]
[1752260905088,0.46229366,117450.0,117440.0,0.27164842]
[1752260905887,0.01620027,117450.0,117440.0,0.29002842]
[1752260906096,0.01620027,117450.0,117440.0,0.30582842]
[1752260906480,0.46229366,117450.0,117440.0,0.27164842]
[1752260909424,0.01620027,117450.0,117440.0,0.28932842]
[1752260909677,0.002,117450.0,117440.0,0.47542814]
[1752260909875,0.002,117450.0,117440.0,0.75973665]
[1752260910051,0.002,117450.0,117440.0,0.94706553]
[1752260910424,0.002,117450.0,117440.0,0.99706553]
[1752260911360,0.002,117450.0,117440.0,0.55097214]
[1752260911564,0.002,117450.0,117440.0,0.99706553]
[1752260912956,0.002,117450.0,117440.0,0.98635724]
[1752260914276,0.002,117450.0,117440.0,1.33473749]
[1752260914628,0.002,117450.0,117440.0,1.69048249]
[1752260917656,0.002,117450.0,117440.0,1.33473749]
[1752260918034,0.002,117450.0,117440.0,3.28692149]
[1752260919385,0.04977028,117480.0,117460.0,0.18728427]
[1752260919584,0.01469028,117480.0,117470.0,0.29434813]
[1752260919794,0.08714627,117490.0,117470.0,0.7295014]
[1752260919999,0.0024,117490.0,117480.0,0.86827677]
[1752260920252,0.0024,117490.0,117480.0,1.88408615]
[1752260920412,0.0024,117490.0,117480.0,1.81652415]
[1752260920650,0.07044627,117510.0,117490.0,0.45303673]
[1752260920873,0.07044627,117510.0,117500.0,0.29268758]
[1752260921075,0.07044627,117510.0,117500.0,0.29273993]
[1752260921632,0.07044627,117510.0,117500.0,0.32715511]
[1752260922673,0.07044627,117510.0,117500.0,0.31854417]
[1752260922886,0.07044627,117510.0,117500.0,0.30214417]
[1752260923699,0.002,117510.0,117500.0,0.30214417]
[1752260925049,0.002,117510.0,117500.0,0.29996417]
[1752260925251,0.47323595,117510.0,117500.0,0.27210993]
[1752260925440,0.48823595,117510.0,117500.0,0.27210993]
[1752260925860,0.05285085,117510.0,117500.0,0.27210993]
[1752260926793,0.48823595,117510.0,117500.0,0.27210993]
[1752260927714,0.04774085,117510.0,117500.0,0.27418993]
[1752260927918,0.01654085,117510.0,117500.0,0.27418993]
[1752260929233,0.002,117510.0,117500.0,0.27418993]
[1752260932325,0.002,117510.0,117500.0,0.44440269]
[1752260932520,0.002,117510.0,117500.0,0.71238269]
[1752260932752,0.002,117510.0,117500.0,0.72089325]
[1752260932950,0.002,117510.0,117500.0,0.71238269]
[1752260934336,0.002,117510.0,117500.0,0.54216993]
[1752260934531,0.002,117510.0,117500.0,0.52418993]
[1752260937675,0.002,117510.0,117500.0,0.72109332]
[1752260938060,0.002,117510.0,117500.0,0.71258269]
[1752260938679,0.0004,117520.0,117510.0,0.17870819]
[1752260938887,0.0005494,117520.0,117510.0,0.30181772]
[1752260939087,0.0005494,117520.0,117510.0,0.32592727]
[1752260939310,0.0005494,117520.0,117510.0,0.31741772]
[1752260939523,0.0005494,117520.0,117510.0,2.81568084]
[1752260939765,0.0024,117530.0,117520.0,0.43720158]
[1752260939984,0.0028979,117530.0,117520.0,1.18832551]
[1752260940207,0.0028979,117530.0,117520.0,1.20575311]
[1752260940446,0.0028979,117530.0,117520.0,0.7444318]
[1752260940656,0.0028979,117530.0,117520.0,0.7359229]
[1752260940840,0.0028979,117530.0,117520.0,0.75594098]
[1752260941099,0.0028979,117530.0,117520.0,0.74743201]
[1752260941528,0.0028979,117530.0,117520.0,0.76444995]
[1752260941777,0.0028979,117530.0,117520.0,0.75594105]
[1752260941993,0.0028979,117530.0,117520.0,0.74743201]
[1752260942428,0.0028979,117530.0,117520.0,0.52872993]
[1752260942628,0.0028979,117530.0,117520.0,0.27654993]
[1752260942915,0.0028979,117530.0,117520.0,0.52654993]
[1752260944505,0.0028979,117530.0,117520.0,2.14166273]
[1752260944822,0.0028979,117530.0,117520.0,2.15716273]
[1752260945191,0.0028979,117530.0,117520.0,2.16767155]
[1752260945420,0.0028979,117530.0,117520.0,2.15065383]
[1752260945621,0.0028979,117530.0,117520.0,2.1591628]
[1752260945820,0.0028979,117530.0,117520.0,2.15916287]
[1752260946021,0.0028979,117530.0,117520.0,2.17618074]
[1752260946423,0.0028979,117530.0,117520.0,2.18468956]
[1752260946721,0.0028979,117530.0,117520.0,2.17618016]
[1752260946945,0.0028979,117530.0,117520.0,2.32623141]
[1752260947141,0.0028979,117530.0,117520.0,2.31772287]
[1752260947347,0.0028979,117530.0,117520.0,2.30192287]
[1752260947548,0.0028979,117530.0,117520.0,2.10636963]
[1752260947748,0.0028979,117530.0,117520.0,1.61116374]
[1752260947923,0.0028979,117530.0,117520.0,1.61967271]
[1752260948142,0.0028979,117530.0,117520.0,0.71467428]
[1752260948348,0.0028979,117530.0,117520.0,3.48559174]
[1752260948543,0.0028979,117530.0,117520.0,2.44410078]
[1752260948879,0.0028979,117530.0,117520.0,2.63010078]
[1752260949090,0.0028979,117530.0,117520.0,2.65440968]
[1752260949343,0.0028979,117530.0,117520.0,2.6629185]
[1752260949544,0.0028979,117530.0,117520.0,2.65440932]
[1752260949747,0.0028979,117530.0,117520.0,2.66291807]
[1752260949974,0.0028979,117530.0,117520.0,2.65440896]
[1752260950175,0.0028979,117530.0,117520.0,2.63739139]
[1752260950715,0.0028979,117530.0,117520.0,2.62888249]
[1752260950913,0.0028979,117530.0,117520.0,2.61308263]
[1752260951194,0.0028979,117530.0,117520.0,1.52448566]
[1752260951424,0.0028979,117530.0,117520.0,1.70317863]
[1752260951640,0.0028979,117530.0,117520.0,1.71877863]
[1752260951906,0.0028979,117530.0,117520.0,0.42026566]
[1752260952130,0.49048385,117530.0,117520.0,0.41818566]
[1752260953182,0.05509875,117530.0,117520.0,0.42026566]
[1752260953387,0.03536875,117530.0,117520.0,0.42026566]
[1752260953601,0.0187979,117530.0,117520.0,0.42026566]
[1752260953823,0.0028979,117530.0,117520.0,0.42026566]
[1752260954245,0.0354979,117530.0,117520.0,0.42026566]
[1752260954478,0.0375279,117530.0,117520.0,0.42026566]
[1752260954683,0.0354979,117530.0,117520.0,0.42026566]
[1752260955522,0.05206875,117530.0,117520.0,0.42026566]
[1752260955734,0.05529875,117530.0,117520.0,0.42026566]
[1752260956634,0.05529875,117530.0,117520.0,0.41818566]
[1752260958678,0.49068385,117530.0,117520.0,0.41818566]
[1752260958887,0.55913012,117530.0,117520.0,0.41818566]
[1752260961762,0.49068385,117530.0,117520.0,0.41818566]
[1752260963398,0.83068385,117530.0,117520.0,0.41818566]
[1752260964601,0.39529875,117530.0,117520.0,0.41818566]
[1752260964773,0.83068385,117530.0,117520.0,0.41818566]
[1752260970021,0.49068385,117530.0,117520.0,0.41818566]
[1752260971112,0.50082502,117530.0,117520.0,0.41818566]
[1752260972267,1.28635129,117530.0,117520.0,0.191]
[1752260973151,0.83063084,117530.0,117520.0,0.188]
[1752260973829,0.83063084,117530.0,117520.0,0.186]
[1752260974086,0.83063084,117530.0,117520.0,0.187]
[1752260974497,0.83063084,117530.0,117520.0,0.186]
[1752260974833,0.83263084,117530.0,117520.0,0.186]
[1752260981188,1.23263084,117530.0,117520.0,0.186]
[1752260983247,0.7827579,117530.0,117520.0,0.27142993]
[1752260983495,0.39729875,117530.0,117520.0,0.27142993]
[1752260983739,0.0210979,117530.0,117520.0,0.27355993]
[1752260983955,0.0028979,117530.0,117520.0,0.27355993]
[1752260984419,0.01743875,117530.0,117520.0,0.27355993]
[1752260984683,0.0028979,117530.0,117520.0,0.29093993]
[1752260985392,0.01743875,117530.0,117520.0,0.29093993]
[1752260985614,0.0028979,117530.0,117520.0,0.92066499]
[1752260985843,0.0028979,117530.0,117520.0,1.53619182]
[1752260986088,0.0028979,117530.0,117520.0,2.5140351]
[1752260986305,0.0028979,117530.0,117520.0,2.53105297]
[1752260986506,0.0028979,117530.0,117520.0,2.52254379]
[1752260986626,0.0038979,117530.0,117520.0,2.52254379]
[1752260987052,0.0038979,117530.0,117520.0,2.49801681]
[1752260987315,0.0038979,117530.0,117520.0,2.54044765]
[1752260987507,0.0038979,117530.0,117520.0,2.53193868]
[1752260987663,0.0038979,117530.0,117520.0,2.54044779]
[1752260987826,0.0028979,117530.0,117520.0,2.54895676]
[1752260988249,0.0028979,117530.0,117520.0,2.55095676]
[1752260988489,0.0028979,117530.0,117520.0,2.55946566]
[1752260988692,0.0028979,117530.0,117520.0,2.55095676]
[1752260988892,0.0028979,117530.0,117520.0,2.55946566]
[1752260989088,0.0028979,117530.0,117520.0,2.56797448]
[1752260989293,0.0028979,117530.0,117520.0,2.54995676]
[1752260989825,0.0028979,117530.0,117520.0,2.04883868]
[1752260990065,0.0028979,117530.0,117520.0,1.6720157]
[1752260990295,0.0028979,117530.0,117520.0,1.68052474]
[1752260990500,0.0028979,117530.0,117520.0,1.54219741]
[1752260990779,0.47587999,117530.0,117520.0,0.08742993]
[1752260990953,0.49042084,117530.0,117520.0,0.18050993]
[1752260991153,0.49042084,117530.0,117520.0,0.18250993]
[1752260991748,0.49042084,117530.0,117520.0,0.18050993]
[1752260991937,0.49042084,117530.0,117520.0,0.17850993]
[1752260992142,0.49142084,117530.0,117520.0,0.17846993]
[1752260992748,0.49142084,117530.0,117520.0,0.17842993]
[1752260993809,0.83142084,117530.0,117520.0,0.093]
[1752260997541,0.39608875,117530.0,117520.0,0.093]
[1752260997664,0.83142084,117530.0,117520.0,0.093]
[1752260999251,0.83142084,117530.0,117520.0,0.17842993]
[1752261003893,0.83142084,117530.0,117520.0,0.08542993]
[1752261004093,0.83142084,117530.0,117520.0,0.17826993]
[1752261004497,0.83142084,117530.0,117520.0,0.09284]
[1752261004726,0.01454085,117520.0,117510.0,0.09284]
[1752261004967,0.45399234,117520.0,117510.0,0.17826993]
[1752261005101,0.45482294,117520.0,117510.0,0.17826993]
[1752261005328,0.48642294,117520.0,117510.0,0.17826993]
[1752261005740,0.48642294,117520.0,117510.0,0.09284]
[1752261005949,0.82642294,117520.0,117480.0,0.002]
[1752261006175,0.45043209,117490.0,117480.0,0.002]
[1752261006378,0.01709,117490.0,117480.0,0.18030993]
[1752261006580,0.03635,117490.0,117480.0,0.18030993]
[1752261007543,0.03635,117490.0,117480.0,0.18045933]
[1752261007669,0.03635,117490.0,117480.0,0.18345933]
[1752261008077,0.02005,117490.0,117480.0,0.18045933]
[1752261008283,0.02005,117490.0,117480.0,0.18557933]
[1752261008923,0.02005,117490.0,117480.0,0.18457933]
[1752261009302,0.02005,117490.0,117480.0,0.18657933]
[1752261013451,0.03575,117490.0,117480.0,0.18445933]
[1752261014220,0.03575,117490.0,117480.0,0.18657933]
[1752261014426,0.02005,117490.0,117480.0,0.18657933]
[1752261015328,0.47118209,117490.0,117480.0,0.18429933]
[1752261015771,0.48572294,117490.0,117480.0,0.18429933]
[1752261017369,0.05039085,117490.0,117480.0,0.18625933]
[1752261017552,0.01653085,117490.0,117480.0,0.18625933]
[1752261017812,0.01454085,117490.0,117480.0,0.18625933]
[1752261018916,0.03523085,117490.0,117480.0,0.18625933]
[1752261020320,0.05143085,117490.0,117480.0,0.18625933]
[1752261021755,0.03024085,117490.0,117480.0,0.18625933]
[1752261022103,0.01454085,117490.0,117480.0,0.18625933]
[1752261022709,0.03044085,117490.0,117480.0,0.18625933]
[1752261025820,0.05183085,117490.0,117480.0,0.18625933]
[1752261026017,0.05183085,117490.0,117480.0,0.18429933]
[1752261026313,0.48716294,117490.0,117480.0,0.18429933]
[1752261026726,0.05183085,117490.0,117480.0,0.18429933]
[1752261027816,0.05183085,117490.0,117480.0,0.18625933]
[1752261030381,0.05183085,117490.0,117480.0,0.18429933]
[1752261033023,0.4976123,117490.0,117480.0,0.18429933]
[1752261034951,0.4976123,117490.0,117480.0,0.09157933]
[1752261035194,0.4976123,117490.0,117480.0,0.18405933]
[1752261035394,0.8376123,117490.0,117480.0,0.18405933]
[1752261036426,0.8376123,117490.0,117480.0,0.18005933]
[1752261036916,0.8376123,117490.0,117480.0,0.18205933]
[1752261037936,1.28339375,117490.0,117480.0,0.0041494]
[1752261038138,1.28339375,117490.0,117480.0,0.0966294]
[1752261038367,1.30891575,117490.0,117480.0,0.0966294]
[1752261038540,1.30891575,117490.0,117480.0,0.0041494]
[1752261038746,1.30891575,117490.0,117480.0,0.0031494]
[1752261038958,1.30891575,117490.0,117480.0,0.0021494]
[1752261039570,0.8631343,117490.0,117480.0,0.0021494]
[1752261040381,0.88924629,117490.0,117480.0,0.0021494]
[1752261042056,1.29124629,117490.0,117480.0,0.0021494]
[1752261043603,0.84546484,117490.0,117480.0,0.0021494]
[1752261043742,1.29124629,117490.0,117480.0,0.0021494]
[1752261044095,0.89124629,117490.0,117480.0,0.0021494]
[1752261045056,1.33702774,117490.0,117480.0,0.0021494]
[1752261045498,1.42938774,117490.0,117480.0,0.0021494]
[1752261045698,0.01454085,117480.0,117460.0,0.01529297]
[1752261045939,0.8979417,117470.0,117460.0,0.0154424]
[1752261046141,0.8958123,117470.0,117460.0,0.0154424]
[1752261046293,0.9213393,117470.0,117460.0,0.0154424]
[1752261046854,0.5213393,117470.0,117460.0,0.0154424]
[1752261049052,0.51118665,117470.0,117460.0,0.0154424]
[1752261049665,0.51118665,117470.0,117460.0,0.00214943]
[1752261052035,0.07555785,117470.0,117460.0,0.00214943]
[1752261052221,0.03181085,117470.0,117460.0,0.08973936]
[1752261052433,0.04761085,117470.0,117460.0,0.08973936]
[1752261052874,0.06649085,117470.0,117460.0,0.08973936]
[1752261053235,0.40862025,117470.0,117460.0,0.08757936]
[1752261053452,0.40649085,117470.0,117460.0,0.08757936]
[1752261053650,0.84211965,117470.0,117460.0,0.08757936]
[1752261053854,0.84211965,117470.0,117460.0,0.00214943]
[1752261056108,0.84311965,117470.0,117460.0,0.00214943]
[1752261058672,0.93543965,117470.0,117460.0,0.00214943]
[1752261058894,0.39295,117470.0,117460.0,0.00214943]
[1752261059539,0.40749085,117470.0,117460.0,0.00214943]
[1752261059962,0.84311965,117470.0,117460.0,0.00214943]
[1752261060767,0.38664085,117470.0,117460.0,0.00430943]
[1752261060972,0.03134085,117470.0,117460.0,0.00430943]
[1752261061184,0.05246085,117470.0,117460.0,0.00430943]
[1752261061586,0.05459025,117470.0,117460.0,0.00430943]
[1752261062512,0.06979025,117470.0,117460.0,0.00214943]
[1752261063754,0.05459025,117470.0,117460.0,0.00430943]
[1752261064203,0.001,117470.0,117460.0,0.08973936]
[1752261064431,0.01554085,117470.0,117460.0,0.08973936]
[1752261065943,0.05459025,117470.0,117460.0,0.08757936]
[1752261066137,0.83021905,117470.0,117460.0,0.08757936]
[1752261066378,0.82808965,117470.0,117460.0,0.08757936]
[1752261066565,0.81148965,117470.0,117460.0,0.08757936]
[1752261066911,0.81148965,117470.0,117460.0,0.08973936]
[1752261067116,0.81148965,117470.0,117460.0,0.08757936]
[1752261067405,0.37586085,117470.0,117460.0,0.08757936]
[1752261067548,0.82798965,117470.0,117460.0,0.08757936]
[1752261069847,0.82798965,117470.0,117460.0,0.17989936]
[1752261070038,0.82798965,117470.0,117460.0,0.00214943]
[1752261070462,0.85351565,117470.0,117460.0,0.00214943]
[1752261080996,0.86406305,117470.0,117460.0,0.00214943]
[1752261082338,0.95638305,117470.0,117460.0,0.00214943]
[1752261087812,0.86406305,117470.0,117460.0,0.00214943]
[1752261088177,0.95638305,117470.0,117460.0,0.00214943]
[1752261094758,0.01454085,117440.0,117420.0,0.0178]
[1752261094927,0.4483056,117430.0,117420.0,0.10322993]
[1752261095124,0.4461762,117430.0,117420.0,0.10529993]
[1752261095282,0.4461762,117430.0,117420.0,0.10747993]
[1752261096156,0.45456288,117430.0,117420.0,0.12247993]
[1752261096597,0.44622592,117430.0,117420.0,0.12547993]
[1752261096800,4.972e-05,117430.0,117420.0,0.12547993]
[1752261097056,4.972e-05,117430.0,117420.0,0.12647993]
[1752261098852,0.34004972,117430.0,117420.0,0.12647993]
[1752261099202,4.972e-05,117430.0,117420.0,0.12647993]
[1752261099401,4.972e-05,117430.0,117420.0,0.58116949]
[1752261099635,4.972e-05,117430.0,117420.0,0.13499329]
[1752261099842,4.972e-05,117430.0,117420.0,0.58329859]
[1752261100053,4.972e-05,117430.0,117420.0,0.58116949]
[1752261100854,4.972e-05,117430.0,117420.0,0.75149822]
[1752261101071,4.972e-05,117430.0,117420.0,0.58116949]
[1752261101270,4.972e-05,117430.0,117420.0,1.00149822]
[1752261101511,4.972e-05,117430.0,117420.0,1.01001465]
[1752261101928,4.972e-05,117430.0,117420.0,1.37556307]
[1752261102148,0.06844627,117470.0,117430.0,0.17882196]
[1752261102350,0.06849608,117470.0,117460.0,0.01217]
[1752261102555,0.06849608,117470.0,117460.0,0.28437993]
[1752261102759,0.08303693,117470.0,117460.0,0.28437993]
[1752261103200,0.08303693,117470.0,117460.0,0.29997993]
[1752261104365,0.01459066,117470.0,117460.0,0.74615613]
[1752261104787,0.01459066,117470.0,117460.0,0.29997993]
[1752261105444,0.01659066,117470.0,117460.0,0.29997993]
[1752261105850,0.01459066,117470.0,117460.0,0.29997993]
[1752261106411,0.01459066,117470.0,117460.0,0.44285993]
[1752261107018,4.981e-05,117470.0,117460.0,0.44285993]
[1752261112709,0.44622601,117470.0,117460.0,0.44285993]
[1752261112876,4.981e-05,117470.0,117460.0,0.44285993]
[1752261113671,0.83905626,117470.0,117460.0,0.14288]
[1752261113892,0.83692686,117470.0,117460.0,0.32744]
[1752261115225,1.23692686,117470.0,117460.0,0.32744]
[1752261115907,1.23692686,117470.0,117460.0,0.41286993]
[1752261118198,1.23692686,117470.0,117460.0,0.32744]
[1752261121246,0.79075066,117470.0,117460.0,0.32744]
[1752261121456,1.23692686,117470.0,117460.0,0.32744]
[1752261122936,0.83692686,117470.0,117460.0,0.32744]
[1752261130685,0.39075066,117470.0,117460.0,0.32744]
[1752261130899,0.83692686,117470.0,117460.0,0.32744]
[1752261134276,1.23692686,117470.0,117460.0,0.32744]
[1752261138089,1.23692686,117470.0,117460.0,0.18456]
[1752261144093,0.35454085,117460.0,117440.0,0.17491544]
[1752261144302,0.37453085,117460.0,117450.0,0.27214993]
[1752261145368,0.82070705,117460.0,117450.0,0.27214993]
[1752261145569,0.35454085,117460.0,117450.0,0.27214993]
[1752261145873,0.80171705,117460.0,117450.0,0.27214993]
[1752261147562,0.81711705,117460.0,117450.0,0.27214993]
[1752261147772,0.82015705,117460.0,117450.0,0.27214993]
[1752261150494,0.83830705,117460.0,117450.0,0.27214993]
[1752261152174,0.39213085,117460.0,117450.0,0.27214993]
[1752261152375,0.83830705,117460.0,117450.0,0.27214993]
[1752261153889,0.37094085,117460.0,117450.0,0.27214993]
[1752261154065,0.80171705,117460.0,117450.0,0.27214993]
[1752261154238,0.81801705,117460.0,117450.0,0.27214993]
[1752261154440,0.82105705,117460.0,117450.0,0.27214993]
[1752261154853,0.83870705,117460.0,117450.0,0.27214993]
[1752261156150,0.83870705,117460.0,117450.0,0.27002993]
[1752261157935,0.341,117460.0,117450.0,0.27214993]
[1752261158142,0.7871762,117460.0,117450.0,0.27214993]
[1752261158314,0.7871762,117460.0,117450.0,0.28864993]
[1752261159136,0.7871762,117460.0,117450.0,0.27214993]
[1752261160110,0.80171705,117460.0,117450.0,0.27214993]
[1752261161450,0.35554085,117460.0,117450.0,0.27214993]
[1752261161650,0.35554085,117460.0,117450.0,0.30542993]
[1752261161860,0.80171705,117460.0,117450.0,0.28982993]
[1752261163472,0.80171705,117460.0,117450.0,0.28764993]
[1752261164448,0.35554085,117460.0,117450.0,0.28764993]
[1752261164653,0.35554085,117460.0,117450.0,0.28982993]
[1752261164849,0.01554085,117460.0,117450.0,0.30562993]
[1752261165177,0.001,117460.0,117450.0,0.30562993]
[1752261165546,0.001,117460.0,117450.0,0.75180613]
[1752261166214,0.001,117460.0,117450.0,1.22209135]
[1752261166435,4.981e-05,117470.0,117460.0,0.0319]
[1752261166636,4.981e-05,117470.0,117460.0,0.56993451]
[1752261166842,4.981e-05,117470.0,117460.0,0.56780613]
[1752261167809,0.00104981,117470.0,117460.0,0.56780613]
[1752261168677,0.00104981,117470.0,117460.0,0.57646062]
[1752261169423,0.00104981,117470.0,117460.0,0.74673135]
[1752261169826,4.981e-05,117470.0,117460.0,0.57646062]
[1752261170047,4.981e-05,117470.0,117460.0,0.74673135]
[1752261170251,4.981e-05,117470.0,117460.0,1.08673135]
[1752261170456,4.981e-05,117470.0,117460.0,2.34079135]
[1752261170663,4.981e-05,117470.0,117460.0,2.36630335]
[1752261170901,0.002,117490.0,117480.0,0.42024174]
[1752261171110,0.00204979,117490.0,117480.0,1.62443601]
[1752261171398,0.00204979,117490.0,117480.0,1.23043988]
[1752261171665,0.00204979,117490.0,117480.0,1.17192787]
[1752261171785,0.00204979,117490.0,117480.0,1.22192787]
[1752261171988,0.00204979,117490.0,117480.0,1.22292787]
[1752261172197,0.00204979,117490.0,117480.0,1.70315138]
[1752261172534,0.00204979,117490.0,117480.0,3.11375738]
[1752261172923,0.002,117510.0,117500.0,0.25]
[1752261173128,0.00204979,117510.0,117500.0,4.37115734]
[1752261173376,0.00204979,117510.0,117500.0,4.39927362]
[1752261173558,0.00204979,117510.0,117500.0,4.04372649]
[1752261173728,0.00204979,117510.0,117500.0,3.93599469]
[1752261173942,0.00204979,117510.0,117500.0,3.92748449]
[1752261174146,0.00204979,117510.0,117500.0,3.48981849]
[1752261174346,0.0024,117530.0,117500.0,3.99450482]
[1752261174529,0.00289796,117530.0,117520.0,3.29851661]
[1752261174733,0.00289796,117530.0,117520.0,3.40603669]
[1752261174935,0.00289796,117530.0,117520.0,4.30056909]
[1752261175134,0.00289796,117530.0,117520.0,4.35056909]
[1752261175377,0.00289796,117530.0,117520.0,3.59296721]
[1752261175550,0.00289796,117530.0,117520.0,3.54660164]
[1752261175759,0.00289796,117530.0,117520.0,3.54960164]
[1752261176156,0.00289796,117530.0,117520.0,3.99577784]
[1752261176354,0.00289796,117530.0,117520.0,3.54960164]
[1752261177617,0.06844627,117540.0,117530.0,1.39539131]
[1752261177821,0.06844627,117540.0,117530.0,2.14061372]
[1752261178020,0.06844627,117540.0,117530.0,2.14279372]
[1752261178225,0.06844627,117540.0,117530.0,1.50194621]
[1752261178457,0.06844627,117540.0,117530.0,2.23573172]
[1752261178815,0.06844627,117540.0,117530.0,2.21079544]
[1752261178996,0.06844627,117540.0,117530.0,2.23673172]
[1752261180478,0.06844627,117540.0,117530.0,1.79055552]
[1752261180846,0.002,117550.0,117530.0,1.23387811]
[1752261181182,0.00212711,117550.0,117540.0,0.29894621]
[1752261181379,0.00212711,117550.0,117540.0,0.30098621]
[1752261182684,0.00212711,117550.0,117540.0,2.30239825]
[1752261182896,0.00212711,117550.0,117540.0,2.31090599]
[1752261183071,0.00212711,117550.0,117540.0,2.31941358]
[1752261183299,0.00212711,117550.0,117540.0,2.35695848]
[1752261183485,0.00212711,117550.0,117540.0,2.36546578]
[1752261183690,0.00312711,117550.0,117540.0,2.32292825]
[1752261184260,0.00212711,117550.0,117540.0,1.88525964]
[1752261184482,0.00212711,117550.0,117540.0,2.32392825]
[1752261184697,0.00212711,117550.0,117540.0,1.88075205]
[1752261184896,0.00212711,117550.0,117540.0,1.71059721]
[1752261185117,0.00212711,117550.0,117540.0,2.30099197]
[1752261185461,0.00212711,117550.0,117540.0,2.34394351]
[1752261185662,0.00212711,117550.0,117540.0,2.35245096]
[1752261185973,0.00212711,117550.0,117540.0,2.33543599]
[1752261186178,0.00212711,117550.0,117540.0,2.32692825]
[1752261186397,0.00212711,117550.0,117540.0,1.84935205]
[1752261186596,0.00212711,117550.0,117540.0,2.09943713]
[1752261186915,0.00212711,117550.0,117540.0,2.26959197]
[1752261187233,0.00212711,117550.0,117540.0,2.31112825]
[1752261187422,0.00212711,117550.0,117540.0,1.63554393]
[1752261187571,0.00212711,117550.0,117540.0,1.61994393]
[1752261187771,0.00212711,117550.0,117540.0,2.04955613]
[1752261188436,0.00212711,117550.0,117540.0,2.06605613]
[1752261189664,0.0157,117560.0,117550.0,0.25]
[1752261189864,0.03633,117570.0,117550.0,0.52290993]
[1752261190160,0.03633,117570.0,117560.0,0.4157165]
[1752261190337,0.03839,117570.0,117560.0,0.41358993]
[1752261190752,0.0024,117570.0,117560.0,0.41562993]
[1752261190931,0.0024,117570.0,117560.0,0.86180613]
[1752261191131,0.0024,117570.0,117560.0,0.88774241]
[1752261191453,0.0185,117570.0,117560.0,0.44156621]
[1752261192330,0.01841748,117570.0,117560.0,0.44156621]
[1752261193676,0.03391748,117570.0,117560.0,0.44156621]
[1752261194498,0.03391748,117570.0,117560.0,0.86180613]
[1752261194927,0.03391748,117570.0,117560.0,0.41562993]
[1752261196364,0.01841748,117570.0,117560.0,0.41562993]
[1752261196570,0.00331748,117570.0,117560.0,1.0763483]
[1752261196787,0.00331748,117570.0,117560.0,1.0913483]
[1752261196990,0.00331748,117570.0,117560.0,1.09985444]
[1752261197158,0.00331748,117570.0,117560.0,2.1567143]